Cogmind - Beta 16 @@@ ROGUE MODE // 2025.11.11 @ 14:04:41 Player: jes Result: Self-destructed Performance ------------- Evolutions (2) 1000 Regions Visited (3) 600 Robots Destroyed (56) 280 Value Destroyed (1696) 1696 Prototype IDs (5) 100 Alien Tech Used (0) 0 Bonus (0) 0 TOTAL SCORE: 3676 Bonus ------- None Cogmind --------- Core Integrity 372/550 Matter 256/300 Energy 261/265 System Corruption 0% Temperature Warning (335) Movement Walking (120) Location -8/Materials Parts ------- > --- POWER (1) -------- Improved Ion Engine > --- PROPULSION (4) --- Aluminum Leg Aluminum Leg Aluminum Leg Aluminum Leg > --- UTILITY (4) ------ Improved Heat Sink Small Storage Unit Structural Scanner Improved Targeting Computer > --- WEAPON (2) ------- Particle Gun Particle Gun > --- INVENTORY (8) ---- Improved Ion Engine Aluminum Leg High-capacity Matter Pod (200) Improved Sensor Array Hacking Suite Particle Gun Scythe Peak State ------------ > --- POWER ------------ Light Nuclear Core > --- PROPULSION ------- Aluminum Leg Aluminum Leg Aluminum Leg Aluminum Leg > --- UTILITY ---------- Small Storage Unit Improved Sensor Array Signal Interpreter Improved Targeting Computer > --- WEAPON ----------- Autogun Scythe > --- INVENTORY -------- Improved Ion Engine Improved Ion Engine Aluminum Leg Improved Heat Sink High-capacity Matter Pod Structural Scanner Hacking Suite [Rating: 20] Favorites ----------- Power Improved Ion Engine Engine Improved Ion Engine Power Core Light Nuclear Core Propulsion Aluminum Leg Treads Light Treads Leg Aluminum Leg Flight Unit Flight Unit Utility Small Storage Unit Device Structural Scanner Storage Small Storage Unit Processor Improved Targeting Computer Protection Light Armor Plating Weapon Assault Rifle Energy Gun Medium Laser Ballistic Gun Assault Rifle Special Weapon Plasma Cutter Slashing Weapon Katana Build | -11 -10 -9 -8 ------- Run | Yrd Mat Mat Mat Slots Evolved 4 | . . 2 2 Power . | . . . . Propulsion 2 | . . 2 . Utility 2 | . . . 2 Weapon . | . . . . Parts Attached 68 | 7 12 24 25 Power 13 | 1 5 4 3 Engine 11 | 1 5 3 2 Core 2 | . . 1 1 Reactor . | . . . . Propulsion 23 | 2 2 8 11 Treads 2 | . . 2 . Leg 19 | 2 2 5 10 Wheel . | . . . . Hover . | . . . . Flight 2 | . . 1 1 Utility 12 | 1 3 2 6 Device 6 | . 1 1 4 Storage 3 | 1 1 1 . Processor 2 | . . . 2 Hackware . | . . . . Protection 1 | . 1 . . Artifact . | . . . . Weapon 20 | 3 2 10 5 Energy Gun 7 | . 2 3 2 Energy Cannon . | . . . . Ballistic Gun 10 | 3 . 5 2 Ballistic Cannon . | . . . . Launcher . | . . . . Special Weapon 1 | . . 1 . Impact Weapon . | . . . . Slashing Weapon 2 | . . 1 1 Piercing Weapon . | . . . . Special Melee Weapon . | . . . . Unidentified Prototypes 1 | . . 1 . Parts Lost 14 | . . 7 7 Power 3 | . . 2 1 Propulsion 6 | . . 3 3 Utility 2 | . . . 2 Weapon 3 | . . 2 1 Highest Loss Streak 6 | . . 6 3 To Critical Strikes . | . . . . Average Backups 7 | 1 7 8 7 Power 2 | . 2 1 1 Propulsion . | . . . . Utility 2 | . . 4 3 Weapon 2 | . 2 2 1 Tool/Special . | . . . . Unused Backups 11 | . 1 5 5 Power 2 | . . . 2 Propulsion . | . . . . Utility 6 | . 1 3 2 Weapon 3 | . . 2 1 Tool/Special . | . . . . Average Slot Usage (%) 96 | . 99 92 98 Engine 9 | . 14 9 4 Core 1 | . . 1 4 Treads 1 | . . 3 . Leg 31 | . 28 33 31 Flight 1 | . . . 3 Device 10 | . 6 11 12 Storage 11 | . 14 10 9 Processor 3 | . . . 13 Protection 1 | . 6 . . Energy Gun 7 | . 12 3 6 Ballistic Gun 14 | . 15 15 11 Slashing Weapon 1 | . . 2 . Peak Build Rating 20 | 6 8 16 20 Average Rating 12 | 5 7 12 17 On Entrance 6 | . 6 8 13 Avg Prop Armor Cover (%) 5 | . . 8 2 Naked Turns . | . . . . Heaviest Build 22 | 13 22 21 20 Greatest Support 40 | 20 20 40 40 Greatest Overweight (x) 2 | 1 1 2 . Average Overweight (x) . | . . . . Largest Inventory Capacity 10 | 8 10 10 8 Average Capacity 8 | 7 9 8 8 Most Carried 10 | 2 10 10 8 Average Carried 7 | 1 7 8 7 Final Capacity 10 | 8 10 8 8 Final Carried 10 | 2 10 8 7 Class Distribution -------------------- 50% | Scavenger-Mutant 49% | Mutant Dominant Class ---------------- Mutant | -10/Materials Scavenger-Mutant | -9/Materials Scavenger-Mutant | -8/Materials Resources | -11 -10 -9 -8 ----------- Run | Yrd Mat Mat Mat Matter Collected 1819 | 178 361 791 489 Remotely . | . . . . Salvage Created 2007 | . 168 1015 824 Parts 115 | . 11 62 42 Haulers Intercepted 1 | . . 1 . Recyclers Shooed . | . . . . Parts Field Recycled . | . . . . Retrieved Matter . | . . . . Parts Self-Destructed . | . . . . Prevented . | . . . . Parts Restored . | . . . . Kills | -11 -10 -9 -8 ------- Run | Yrd Mat Mat Mat Combat Hostiles Destroyed 50 | . 5 25 20 Melee 4 | . . 3 1 Guns 45 | . 5 22 18 Classes Destroyed 6 | . 4 2 . Worker 2 | . 1 1 . Hauler 1 | . . 1 . Watcher 3 | . 1 2 . Swarmer 14 | . 3 7 4 Grunt 28 | . 2 13 13 Sentry 8 | . . 5 3 Best Kill Streak 12 | . 3 12 4 Combat Bots Only 7 | . 3 7 4 Max Kills in Single Turn 2 | . 1 2 2 Gunslinging 1 | . . . 1 Exploded . | . . . . Melee 1 | . . 1 1 Uniques/NPCs Destroyed . | . . . . Combat | -11 -10 -9 -8 -------- Run | Yrd Mat Mat Mat Hostile Shots Fired 318 | . 30 169 119 Missed 78 | . 5 42 31 Hits 240 | . 25 127 88 Projectile 240 | . 25 127 88 Critical Strikes 4 | . . 1 3 Damage Taken 3116 | . 239 1583 1294 Core 515 | . 32 305 178 Absorbed by Shields . | . . . . Core Remaining (%) 70 | 100 87 23 . Volleys Fired 135 | . 18 62 55 Largest 2 | . 2 2 2 Hottest 130 | . 70 83 130 Shots Fired 260 | . 36 114 110 Gun 256 | . 36 110 110 Cannon . | . . . . Launcher . | . . . . Special 4 | . . 4 . Kinetic 178 | . 18 96 64 Thermal 82 | . 18 18 46 Explosive . | . . . . Electromagnetic . | . . . . Robot Hit Streak 27 | . 6 14 27 Robot Miss Streak 5 | . 5 3 4 Penetration Max . | . . . . Secondary Targets 6 | . 2 2 2 Max Gunslinging Chain 1 | . 1 1 1 Shots Hit Robots 198 | . 20 86 92 Core Hits 86 | . 10 40 36 Critical Kills . | . . . . Critical Parts Destroyed . | . . . . Critical Strikes 8 | . 2 2 4 Burn 4 | . 2 . 2 Sever 4 | . . 2 2 Melee Attacks 22 | . . 17 5 Impact . | . . . . Slashing 22 | . . 17 5 Piercing . | . . . . Sneak Attacks 1 | . . 1 . Combat Hostiles . | . . . . Follow-up Attacks . | . . . . Damage Inflicted 3310 | . 263 1548 1499 Guns 2785 | . 263 1146 1376 Cannons . | . . . . Explosions . | . . . . Melee 525 | . . 402 123 Ramming . | . . . . Kinetic 1884 | . 99 974 811 Thermal 901 | . 164 172 565 Explosive . | . . . . Electromagnetic . | . . . . Impact . | . . . . Slashing 525 | . . 402 123 Piercing . | . . . . Highest Corruption . | . . . . Average Corruption . | . . . . Corruption Purged . | . . . . Corruption Blocked . | . . . . Overload Shots . | . . . . Overflow Damage . | . . . . Projectiles . | . . . . Explosions . | . . . . Melee . | . . . . Knockbacks . | . . . . Impact . | . . . . Kinetic . | . . . . Secondary . | . . . . Self-Inflicted Damage . | . . . . Shots . | . . . . Rammed . | . . . . Targets Rammed . | . . . . Kicked . | . . . . Crushed . | . . . . Highest Temperature 381 | . 180 331 381 Average Temperature 87 | . 64 119 83 Received Heat Transfer 1332 | . 54 639 639 Effects 3 | . . . 3 Interference 3 | . . . 3 Siege Activations . | . . . . Martial Activations . | . . . . Shielding Activations . | . . . . Robots Disrupted . | . . . . Combat Hostiles . | . . . . Robots Corrupted . | . . . . Combat Hostiles . | . . . . Parts Fried . | . . . . Impact Corruptions . | . . . . Robots Melted 1 | . . . 1 Combat Hostiles 1 | . . . 1 Parts Melted 3 | . 2 1 . Heat Transferred 2590 | . 629 370 1591 Parts Sabotaged . | . . . . Parts Stolen . | . . . . Parts Stripped . | . . . . Power Chain Reactions . | . . . . Alert | -11 -10 -9 -8 ------- Run | Yrd Mat Mat Mat Maximum Alert Level 1 | . . 1 1 Low Security (%) 66 | 100 100 57 43 Level 1 33 | . . 42 56 Level 2 . | . . . . Level 3 . | . . . . Level 4 . | . . . . Level 5 . | . . . . High Security . | . . . . Max Security . | . . . . Peak Influence 374 | . 110 374 286 Initial 152 | . . . 152 Average 122 | . 26 142 204 Influence Increases 1476 | . 189 765 522 Destroy 0b10 Robot/C 1000 | . 100 500 400 Destroy 0b10 Robot/NC 30 | . 10 20 . Destroy Leader 208 | . 22 106 80 Successful Hack 94 | . 27 43 24 Disable Machine 15 | . . . 15 Destroy Structure 9 | . . 6 3 Lose Combat Pursuer 120 | . 30 90 . Influence Decreases 1190 | . 189 403 598 Entered New Map 210 | . . . 210 Time Decay 857 | . 189 350 318 Lost Part 123 | . . 53 70 Squads Dispatched 8 | . . 3 5 Investigation 5 | . . 2 3 Extermination . | . . . . Reinforcement 2 | . . 1 1 Assault . | . . . . Garrison 1 | . . . 1 Intercept . | . . . . Searches Triggered . | . . . . Construction Impeded . | . . . . Haulers Reinforced . | . . . . Active Scanning Responses . | . . . . Cargo Convoy Interrupts . | . . . . Stealth | -11 -10 -9 -8 --------- Run | Yrd Mat Mat Mat Distress Signals 3 | . . 3 . Communications Jammed . | . . . . Distress Signals . | . . . . Times Spotted 72 | . 10 36 26 Peak Tracking Total 7 | . 3 7 6 Tactical Retreats 5 | . 1 4 . Traps | -11 -10 -9 -8 ------- Run | Yrd Mat Mat Mat Traps Triggered 1 | . . . 1 Indirectly . | . . . . Trap Hack Attempts . | . . . . Triggered . | . . . . Disarmed . | . . . . Reprogrammed . | . . . . Reused . | . . . . Traps Extracted . | . . . . Installed . | . . . . Triggered . | . . . . Machines | -11 -10 -9 -8 ---------- Run | Yrd Mat Mat Mat Machines Disabled 1 | . . . 1 Max in Single Turn 1 | . . . 1 Machines Repaired . | . . . . Machines Dismantled . | . . . . Machines Sabotaged . | . . . . Overloaded Fab Kills . | . . . . Hacking | -11 -10 -9 -8 --------- Run | Yrd Mat Mat Mat Machines Accessed 13 | . 4 6 3 Terminals 12 | . 4 5 3 Fabricators . | . . . . Repair Stations . | . . . . Recycling Units 1 | . . 1 . Scanalyzers . | . . . . Garrison Access . | . . . . Total Hacks 40 | . 10 15 15 Successful 18 | . 6 6 6 Failed 22 | . 4 9 9 Catastrophic 3 | . 1 1 1 Database Lockouts . | . . . . Manual . | . . . . Terminals 39 | . 10 14 15 Fabricators . | . . . . Repair Stations . | . . . . Recycling Units 1 | . . 1 . Scanalyzers . | . . . . Garrison Access . | . . . . Terminal Hacks 17 | . 6 5 6 Robot Analysis 1 | . 1 . . Prototype ID Bank 2 | . 1 . 1 Branch Access Points 2 | . . 1 1 Emergency Access Points 2 | . 1 . 1 Alert Level 1 | . . . 1 Locate Traps 1 | . . 1 . Dispatch Records 2 | . 1 1 . Security Status 1 | . . . 1 Transport Status 1 | . . 1 . Hauler Manifests 4 | . 2 1 1 Fabricator Hacks . | . . . . Repair Station Hacks . | . . . . Recycling Unit Hacks 1 | . . 1 . Report Inventory 1 | . . 1 . Scanalyzer . | . . . . Garrison Access Hacks . | . . . . Unauthorized Hacks . | . . . . Terminals . | . . . . Fabricators . | . . . . Repair Stations . | . . . . Recycling Units . | . . . . Scanalyzers . | . . . . Garrison Access . | . . . . Data Cores Recovered . | . . . . Used . | . . . . Hacking Detections 11 | . 3 5 3 Full Trace Events 5 | . . 3 2 Feedback Events . | . . . . Feedback Blocked . | . . . . Robot Schematics Acquired . | . . . . Robots Built . | . . . . Authchips . | . . . . Time . | . . . . Total Robot Build Rating . | . . . . Part Schematics Acquired . | . . . . Parts Built . | . . . . Authchips . | . . . . Time . | . . . . Total Part Build Rating . | . . . . Part Studies Acquired . | . . . . Parts Repaired . | . . . . Time . | . . . . Parts Recycled . | . . . . Recycled Matter . | . . . . Retrieved Matter . | . . . . Retrieved Components . | . . . . Parts Scanalyzed . | . . . . Part Schematics Acquired . | . . . . Parts Damaged . | . . . . Bothacking | -11 -10 -9 -8 ------------ Run | Yrd Mat Mat Mat Used RIF Installer . | . . . . Robots Hacked . | . . . . Non-combat . | . . . . Combat . | . . . . Robot Hacks Applied . | . . . . Relay Couplers Released . | . . . . Fabnet Peak Effective % . | . . . . Robots Rewired . | . . . . Allies Hacked . | . . . . Hacks Repelled . | . . . . Allies | -11 -10 -9 -8 -------- Run | Yrd Mat Mat Mat Total Allies . | . . . . Largest Group . | . . . . Highest-Rated Group . | . . . . Highest-Rated Ally . | . . . . Total Orders . | . . . . Ally Attacks . | . . . . Total Damage . | . . . . Kills . | . . . . Allies Corrupted . | . . . . Allies Melted . | . . . . Intel | -11 -10 -9 -8 ------- Run | Yrd Mat Mat Mat Active Infowar (turns) 2065 | . 345 1075 645 Sensors 912 | . 345 17 550 Structural 1158 | . . 1058 100 Robot Analysis Total 1 | . 1 . . Derelict Logs Recovered . | . . . . Drone Launches . | . . . . Drone Recoveries . | . . . . Exploration | -11 -10 -9 -8 ------------- Run | Yrd Mat Mat Mat Turns Passed 2598 | 78 727 1075 718 Spaces Moved 1369 | 57 482 549 281 Core 6 | 5 . 1 . Treads 92 | . . 92 . Legs 1271 | 52 482 456 281 Wheels . | . . . . Hover . | . . . . Flight . | . . . . Fastest Speed 50 | 50 120 120 120 Average Speed 123 | 116 122 127 120 Slowest Speed 190 | 120 190 190 120 Overloaded Moves . | . . . . Propulsion Burnouts . | . . . . Robots Hopped . | . . . . Potential Cave-ins . | . . . . Cave-ins Triggered . | . . . . Exploration Rate (%) 35 | 4 66 49 21 Regions Visited 3 Branch Regions . Pre-discovered Areas . | . . . . Known Exits Taken . | . . . . Unknown Exits Taken 3 | 1 1 1 . Scrap Searched . | . . . . Spaces Dug 1 | . . 1 . Terrain Destroyed 1 | . . 1 . Melee 1 | . . 1 . Projectile . | . . . . AOE . | . . . . Terrain Rammed . | . . . . Walls Destroyed . | . . . . Machines Disabled . | . . . . Actions | -11 -10 -9 -8 --------- Run | Yrd Mat Mat Mat Total 1988 | 65 582 789 552 Wait 293 | . 50 91 152 Move 1366 | 56 481 548 281 Hop . | . . . . Pick Up 37 | 2 11 14 10 Fast Attach 22 | 6 3 9 4 Attach 13 | . . 7 6 Detach . | . . . . Swap 51 | 1 11 18 21 Drop 49 | . 8 23 18 Fire 135 | . 18 62 55 Melee 22 | . . 17 5 Ram . | . . . . Kick . | . . . . Crush . | . . . . Escape Stasis . | . . . . Rewire . | . . . . Trap . | . . . . Miscellaneous . | . . . . Route ------- -11/Scrapyard -10/Materials (discovered 2 exits: *Mat x2) -9/Materials (discovered 2 exits: *Mat / Min) -8/Materials History --------- Turn | Location | Event 41 | -11/Scrapyard | Discovered new exit (range 15) 79 | -11/Scrapyard | Entered Materials 331 | -10/Materials | Build established: Mutant 416 | -10/Materials | Discovered new exit (range 7) 762 | -10/Materials | Discovered new exit (range 7) 806 | -10/Materials | Entered another Materials area 806 | -9/Materials | Evolved 2 slots: Propulsion x2 970 | -9/Materials | Identified exit to Mines 1121 | -9/Materials | Core integrity fell below 50% 1145 | -9/Materials | Lost 6 parts (2p3n1w) 1438 | -9/Materials | Destroyed 7 combat bots 1616 | -9/Materials | Build established: Scavenger-Mutant 1873 | -9/Materials | Discovered new exit (range 6) 1881 | -9/Materials | Entered another Materials area 1881 | -8/Materials | Evolved 2 slots: Utility x2 2433 | -8/Materials | Lost 3 parts (1p1u1w) 2567 | -8/Materials | Garrison activated, responded to threat 2599 | -8/Materials | Self-destructed Last Messages --------------- Plating. 02582_ M-13 Machinist repairs Y-45 Defender Heat Sink. 02585_ G-47 Trooper suffers critical hit (Burn). 02585_ G-47 Trooper overheating. 02586_ G-47 Trooper heat short circuits Aluminum Leg. 02586_ G-47 Trooper critical meltdown. 02586_ M-13 Machinist repairs Y-45 Defender Beam Rifle. 02587_ Critical hit (Burn: +37). 02587_ Aluminum Leg destroyed. 02589_ Y-45 Defender heat damages Lgt. Armor Plating. 02591_ Destroyed Lgt. Armor Plating. 02594_ Overheating: System interference. 02594_ Imp. Heat Sink temporarily disabled. 02594_ Structural Scanner temporarily disabled. 02594_ Imp. Heat Sink temporarily disabled. 02594_ Y-45 Defender destroyed. Map ----- +----------------------------------------------------+ | ?????????????????????????????? ????????????????? | | ?????????????????????????????? ???????????????? | | ???????????????????????????? #??????????????? | | ????????????????????????????## ############????? | | ????????????????????????????## ############????? | | ????????????????????????????## ## !!! ##????# | | ????????????????????????????## ## !!! ##????# | | ????????????????????????????## ## !!! ##????# | | ????????????????????????????## ## ##????# | | ???????????????????? ######### ## ##????# | | ???????????????????? ######### ## """ ##????# | | ???????????????????? #]]]]!!## ##! """ ##????# | | ?????????????? #]]]]!!## ## """ ##????# | | ???????????#######+### ## ## ! ####### | | ???????????##### # ## #####+########## | | ??????????? | | ????????? T ^ | | ????????? | | ???????????##### ###+######## ############### | | ???????????###### ### m ###### ####### [ ## | | ?????????????? # ???## g% ##??## ##????#[ """ ## | | ??????????????? # ???## ##??## ##????# """ ## | | ????????????????+????## ! ######+##????# """ ## | | ????????????????# ???## # ##????# ! =[## | | ??????????????? # ### ! # """ ####### [=*=## | | ??????????????? # #####@## """ # #######!### | | ??????????????? # Y%[# """ / ![ % | | ??????????????? # # # ==[! | | ???????????????## # ]] /# #######+## | | ???????????????######### + ]] ## #?# # | | ???????????????######### # ]] ## #?# # | | ??????????????????????## # ## #?# """ + | | ??????????????????????## # """ + ### """"" # | | ??????????????????????###### """ ## + """"" ## | | ??????????????????????###### """ ### #%""""" # | | ???????????????????????????# #?# #= "" #/ | | ???????????????????????????########?# + == + | | ????????????????????????????????????##### = "T" # | | ????????????????????????????????????????# !%""" # | | ????????????????????????????????????????# * # | | ????????????????????????????????????????######### | | ????????????????????????????????????????????????# | | ????????????????????????????????????????????????## | | | | | | | | | | | | | | | +----------------------------------------------------+ Best States ------------- Heat Dissipation 45 Energy Generation 14 Energy Capacity 265 Matter Stores 300 Matter Capacity 300 Sight Range 16 Robot Scan Range 15 Terrain Scan Density 10 Armor Coverage 150 Evasion (%) 55 Targeting Accuracy 6 Recoil Reduction 2 Item Schematics ----------------- None Robot Schematics ------------------ None Fabricated ------------ Nothing Repaired ---------- Nothing Studied --------- None Alien Tech Used ----------------- None Achievements -------------- None Challenges ------------ None Game ------ Seed VortexThrowingProjector Manual? 0 Play Time 01:01:55 Cumulative 47.4 hours Start 2025.11.11 @ 12:42:22 End 2025.11.11 @ 14:04:41 Sessions 3 Manual Loads 0 Difficulty Rogue Special Mode None Game No. 31 Rogue 31 Adventurer 0 Explorer 0 Win Type - Total 0 Types 0/0/0/0/0/0/0/0/0/0 Lore% 15 Gallery% 24 Achievement% 18 Wizard Run 0 Options --------- Layout 1 ASCII 1 Keyboard 1 Movement Vi Keybinds 0 Fullscreen 2 Font 36/Terminus Map View 50x43 Zoom Use 0% Tactical HUD 1 Map Filters NONE Filters SHIFT_HUE(300) Steam 1 RUN: d7010be2-ca0a-413f-ae32-3f24a8b2a629